[Event "Titled Tuesday Blitz June 21 Late 2022"]
[White "Dobre, Claudiu-Cristian"]
[Black "Muradov, Soltan"]
[WhiteFideId "1211854"]
[BlackFideId "14002108"]
[WhiteElo "2207"]
[BlackElo "1854"]
[Result "0-1"]
[Round "02"]
[TimeControl "180+1"]
[Date "2022.06.22"]
[WhiteClock "0:00:02"]
[BlackClock "0:00:11"]

1. c4 {[%clk 0:03:00]}  Nf6 {[%clk 0:02:55]} 2. Nc3 {[%clk 0:03:00]}  d5 {[%clk 0:02:53]} 3. cxd5 {[%clk 0:02:59]}  Nxd5 {[%clk 0:02:54]} 4. e4 {[%clk 0:02:59]}  Nxc3 {[%clk 0:02:54]} 5. dxc3 {[%clk 0:03:00]}  Qxd1+ {[%clk 0:02:54]} 6. Kxd1 {[%clk 0:03:01]}  e5 {[%clk 0:02:50]} 7. Be3 {[%clk 0:03:02]}  Be6 {[%clk 0:02:50]} 8. Nf3 {[%clk 0:03:02]}  f6 {[%clk 0:02:50]} 9. Nd2 {[%clk 0:03:01]}  Nd7 {[%clk 0:02:48]} 10. Bc4 {[%clk 0:02:55]}  Bxc4 {[%clk 0:02:47]} 11. Nxc4 {[%clk 0:02:56]}  O-O-O {[%clk 0:02:48]} 12. Kc2 {[%clk 0:02:54]}  Bc5 {[%clk 0:02:48]} 13. b4 {[%clk 0:02:53]}  Bxe3 {[%clk 0:02:48]} 14. Nxe3 {[%clk 0:02:53]}  c6 {[%clk 0:02:39]} 15. a4 {[%clk 0:02:51]}  Kc7 {[%clk 0:02:36]} 16. h4 {[%clk 0:02:44]}  h5 {[%clk 0:02:33]} 17. Rh3 {[%clk 0:02:43]}  Nf8 {[%clk 0:02:33]} 18. Rhh1 {[%clk 0:02:22]}  Ne6 {[%clk 0:02:32]} 19. g3 {[%clk 0:02:22]}  a5 {[%clk 0:02:28]} 20. Rhd1 {[%clk 0:01:30]}  Rxd1 {[%clk 0:02:24]} 21. Rxd1 {[%clk 0:01:29]}  axb4 {[%clk 0:02:24]} 22. cxb4 {[%clk 0:01:28]}  Nd4+ {[%clk 0:02:24]} 23. Kc3 {[%clk 0:01:27]}  Rd8 {[%clk 0:02:14]} 24. Rd2 {[%clk 0:01:27]}  Ra8 {[%clk 0:02:10]} 25. a5 {[%clk 0:01:26]}  Rd8 {[%clk 0:02:10]} 26. Nf5 {[%clk 0:01:20]}  Nb5+ {[%clk 0:01:30]} 27. Kc2 {[%clk 0:01:20]}  Na3+ {[%clk 0:01:30]} 28. Kc1 {[%clk 0:01:20]}  Rg8 {[%clk 0:01:12]} 29. f3 {[%clk 0:01:08]}  Nb5 {[%clk 0:01:12]} 30. g4 {[%clk 0:01:05]}  g6 {[%clk 0:01:07]} 31. Ng3 {[%clk 0:01:02]}  hxg4 {[%clk 0:01:07]} 32. fxg4 {[%clk 0:01:02]}  Nd4 {[%clk 0:01:05]} 33. Rf2 {[%clk 0:00:57]}  f5 {[%clk 0:00:47]} 34. exf5 {[%clk 0:00:44]}  gxf5 {[%clk 0:00:47]} 35. g5 {[%clk 0:00:38]}  f4 {[%clk 0:00:19]} 36. Ne4 {[%clk 0:00:38]}  Nf5 {[%clk 0:00:19]} 37. h5 {[%clk 0:00:37]}  Ng3 {[%clk 0:00:16]} 38. h6 {[%clk 0:00:17]}  Nxe4 {[%clk 0:00:15]} 39. h7 {[%clk 0:00:17]}  Rd8 {[%clk 0:00:10]} 40. Re2 {[%clk 0:00:16]}  Nxg5 {[%clk 0:00:09]} 41. Rxe5 {[%clk 0:00:16]}  Nxh7 {[%clk 0:00:09]} 42. Rf5 {[%clk 0:00:16]}  Rd4 {[%clk 0:00:08]} 43. Rf7+ {[%clk 0:00:15]}  Rd7 {[%clk 0:00:09]} 44. Rxf4 {[%clk 0:00:15]}  Ng5 {[%clk 0:00:09]} 45. Kc2 {[%clk 0:00:14]}  Ne6 {[%clk 0:00:09]} 46. Rf6 {[%clk 0:00:14]}  Nd4+ {[%clk 0:00:09]} 47. Kb2 {[%clk 0:00:15]}  Nb5 {[%clk 0:00:10]} 48. Rh6 {[%clk 0:00:13]}  Kb8 {[%clk 0:00:09]} 49. Rh4 {[%clk 0:00:12]}  Nc7 {[%clk 0:00:09]} 50. Rh8+ {[%clk 0:00:10]}  Ka7 {[%clk 0:00:10]} 51. Rh5 {[%clk 0:00:10]}  Ka6 {[%clk 0:00:10]} 52. Kc3 {[%clk 0:00:10]}  Rg7 {[%clk 0:00:09]} 53. Rh3 {[%clk 0:00:09]}  Kb5 {[%clk 0:00:08]} 54. Kb3 {[%clk 0:00:07]}  Nd5 {[%clk 0:00:09]} 55. Rf3 {[%clk 0:00:07]}  Rg4 {[%clk 0:00:09]} 56. Rf7 {[%clk 0:00:07]}  Rxb4+ {[%clk 0:00:10]} 57. Ka3 {[%clk 0:00:07]}  Ra4+ {[%clk 0:00:10]} 58. Kb2 {[%clk 0:00:07]}  Rb4+ {[%clk 0:00:10]} 59. Ka3 {[%clk 0:00:07]}  Kxa5 {[%clk 0:00:11]} 60. Rf5 {[%clk 0:00:07]}  Rb5 {[%clk 0:00:10]} 61. Rh5 {[%clk 0:00:06]}  Nb6 {[%clk 0:00:11]} 62. Rh4 {[%clk 0:00:05]}  Nd5 {[%clk 0:00:10]} 63. Ra4+ {[%clk 0:00:04]}  Kb6 {[%clk 0:00:10]} 64. Rh4 {[%clk 0:00:05]}  Kc7 {[%clk 0:00:11]} 65. Ka4 {[%clk 0:00:04]}  Rb6 {[%clk 0:00:09]} 66. Ka3 {[%clk 0:00:04]}  Ra6+ {[%clk 0:00:09]} 67. Kb3 {[%clk 0:00:03]}  b5 {[%clk 0:00:10]} 68. Rh6 {[%clk 0:00:02]}  Kb6 {[%clk 0:00:11]} 0-1


[Site "https://www.chess.com"]

[Event "Titled Tuesday Blitz June 21 Late 2022"]
[White "Estrada Nieto, Julian"]
[Black "Tari, Aryan"]
[WhiteFideId "5101018"]
[BlackFideId "1510045"]
[WhiteElo "2252"]
[BlackElo "2567"]
[Result "0-1"]
[Round "02"]
[TimeControl "180+1"]
[Date "2022.06.22"]
[WhiteClock "0:00:01"]
[BlackClock "0:00:19"]

1. e4 {[%clk 0:03:00]}  c5 {[%clk 0:02:56]} 2. Nf3 {[%clk 0:02:59]}  Nc6 {[%clk 0:02:56]} 3. Bb5 {[%clk 0:02:59]}  Nf6 {[%clk 0:02:44]} 4. Nc3 {[%clk 0:02:56]}  g6 {[%clk 0:02:42]} 5. Bxc6 {[%clk 0:02:53]}  dxc6 {[%clk 0:02:42]} 6. d3 {[%clk 0:02:52]}  Bg7 {[%clk 0:02:42]} 7. h3 {[%clk 0:02:52]}  O-O {[%clk 0:02:32]} 8. Be3 {[%clk 0:02:52]}  Nd7 {[%clk 0:02:32]} 9. Qd2 {[%clk 0:02:52]}  e5 {[%clk 0:02:32]} 10. Bh6 {[%clk 0:02:51]}  Re8 {[%clk 0:02:32]} 11. Bxg7 {[%clk 0:02:51]}  Kxg7 {[%clk 0:02:33]} 12. O-O {[%clk 0:02:51]}  Nf8 {[%clk 0:02:32]} 13. Nh2 {[%clk 0:02:45]}  Ne6 {[%clk 0:02:30]} 14. Ne2 {[%clk 0:02:42]}  Qh4 {[%clk 0:02:13]} 15. f4 {[%clk 0:02:37]}  exf4 {[%clk 0:02:10]} 16. Nxf4 {[%clk 0:02:37]}  b6 {[%clk 0:02:02]} 17. Ng4 {[%clk 0:02:20]}  Nxf4 {[%clk 0:01:46]} 18. Qxf4 {[%clk 0:02:18]}  Bxg4 {[%clk 0:01:19]} 19. Qxf7+ {[%clk 0:02:11]}  Kh6 {[%clk 0:01:13]} 20. Qf4+ {[%clk 0:01:54]}  Qg5 {[%clk 0:01:01]} 21. hxg4 {[%clk 0:01:50]}  Qxf4 {[%clk 0:00:53]} 22. Rxf4 {[%clk 0:01:49]}  c4 {[%clk 0:00:54]} 23. Kf2 {[%clk 0:01:27]}  Kg5 {[%clk 0:00:52]} 24. g3 {[%clk 0:01:23]}  Rad8 {[%clk 0:00:43]} 25. Ke3 {[%clk 0:01:18]}  cxd3 {[%clk 0:00:43]} 26. cxd3 {[%clk 0:01:19]}  Rd7 {[%clk 0:00:44]} 27. d4 {[%clk 0:01:12]}  c5 {[%clk 0:00:41]} 28. Rd1 {[%clk 0:01:03]}  cxd4+ {[%clk 0:00:28]} 29. Rxd4 {[%clk 0:01:03]}  Rxd4 {[%clk 0:00:28]} 30. Kxd4 {[%clk 0:01:03]}  Rd8+ {[%clk 0:00:29]} 31. Ke3 {[%clk 0:01:00]}  Rd1 {[%clk 0:00:29]} 32. Rf7 {[%clk 0:00:57]}  Re1+ {[%clk 0:00:28]} 33. Kd3 {[%clk 0:00:52]}  h6 {[%clk 0:00:25]} 34. Rxa7 {[%clk 0:00:29]}  Kxg4 {[%clk 0:00:25]} 35. Rg7 {[%clk 0:00:26]}  g5 {[%clk 0:00:24]} 36. Rg6 {[%clk 0:00:25]}  h5 {[%clk 0:00:24]} 37. Kd4 {[%clk 0:00:22]}  Rd1+ {[%clk 0:00:23]} 38. Kc4 {[%clk 0:00:18]}  Rg1 {[%clk 0:00:20]} 39. e5 {[%clk 0:00:17]}  Kf5 {[%clk 0:00:20]} 40. Rxb6 {[%clk 0:00:16]}  Rxg3 {[%clk 0:00:20]} 41. e6 {[%clk 0:00:14]}  Re3 {[%clk 0:00:19]} 42. Kd5 {[%clk 0:00:14]}  Re5+ {[%clk 0:00:19]} 43. Kd4 {[%clk 0:00:14]}  Re4+ {[%clk 0:00:19]} 44. Kd5 {[%clk 0:00:14]}  Re1 {[%clk 0:00:19]} 45. Rb8 {[%clk 0:00:10]}  Rd1+ {[%clk 0:00:19]} 46. Kc6 {[%clk 0:00:10]}  Kxe6 {[%clk 0:00:20]} 47. Rg8 {[%clk 0:00:09]}  g4 {[%clk 0:00:20]} 48. Rg5 {[%clk 0:00:08]}  Rh1 {[%clk 0:00:19]} 49. b4 {[%clk 0:00:07]}  Kf6 {[%clk 0:00:20]} 50. Rg8 {[%clk 0:00:07]}  Kf7 {[%clk 0:00:20]} 51. Rg5 {[%clk 0:00:07]}  Kf6 {[%clk 0:00:21]} 52. Rg8 {[%clk 0:00:07]}  Rc1+ {[%clk 0:00:21]} 53. Kd6 {[%clk 0:00:05]}  Rb1 {[%clk 0:00:21]} 54. Kc5 {[%clk 0:00:04]}  Ra1 {[%clk 0:00:20]} 55. b5 {[%clk 0:00:02]}  Rxa2 {[%clk 0:00:20]} 56. Rh8 {[%clk 0:00:02]}  Rc2+ {[%clk 0:00:20]} 57. Kd6 {[%clk 0:00:01]}  g3 {[%clk 0:00:19]} 0-1


[Site "https://www.chess.com"]

[Event "Titled Tuesday Blitz June 21 Late 2022"]
[White "Fedoseev, Vladimir"]
[Black "Daggupati, Balaji"]
[WhiteFideId "24130737"]
[BlackFideId "2090759"]
[WhiteElo "2726"]
[BlackElo "2685"]
[Result "1-0"]
[Round "02"]
[TimeControl "180+1"]
[Date "2022.06.21"]
[WhiteClock "0:01:43"]
[BlackClock "0:01:15"]

1. e4 {[%clk 0:02:58]}  c5 {[%clk 0:03:00]} 2. Nf3 {[%clk 0:02:58]}  e6 {[%clk 0:03:00]} 3. d4 {[%clk 0:02:58]}  cxd4 {[%clk 0:03:01]} 4. Nxd4 {[%clk 0:02:58]}  Nf6 {[%clk 0:03:02]} 5. Nc3 {[%clk 0:02:57]}  Nc6 {[%clk 0:03:02]} 6. Nxc6 {[%clk 0:02:56]}  bxc6 {[%clk 0:03:03]} 7. e5 {[%clk 0:02:56]}  Nd5 {[%clk 0:03:04]} 8. Ne4 {[%clk 0:02:56]}  Qc7 {[%clk 0:03:05]} 9. f4 {[%clk 0:02:55]}  Qb6 {[%clk 0:03:05]} 10. Bd3 {[%clk 0:02:45]}  Be7 {[%clk 0:02:43]} 11. Qe2 {[%clk 0:02:42]}  Bb7 {[%clk 0:02:36]} 12. a3 {[%clk 0:02:38]}  f5 {[%clk 0:02:30]} 13. exf6 {[%clk 0:02:27]}  Nxf6 {[%clk 0:02:30]} 14. Ng5 {[%clk 0:02:12]}  c5 {[%clk 0:02:16]} 15. c4 {[%clk 0:02:08]}  h6 {[%clk 0:01:56]} 16. Bg6+ {[%clk 0:02:05]}  Kf8 {[%clk 0:01:56]} 17. Nf7 {[%clk 0:02:05]}  Rg8 {[%clk 0:01:56]} 18. Ne5 {[%clk 0:02:02]}  d6 {[%clk 0:01:49]} 19. O-O {[%clk 0:01:57]}  Rd8 {[%clk 0:01:24]} 20. Nf7 {[%clk 0:01:45]}  Rc8 {[%clk 0:01:20]} 21. Ng5 {[%clk 0:01:43]}  hxg5 {[%clk 0:01:15]} 22. Qxe6 {[%clk 0:01:43]} 1-0


[Site "https://www.chess.com"]

[Event "Titled Tuesday Blitz June 21 Late 2022"]
[White "Fiorito, Fabian"]
[Black "Rosenberg, Evan S"]
[WhiteFideId "100200"]
[BlackFideId "2019299"]
[WhiteElo "2395"]
[BlackElo "2347"]
[Result "1-0"]
[Round "02"]
[TimeControl "180+1"]
[Date "2022.06.22"]
[WhiteClock "0:01:23"]
[BlackClock "0:00:10"]

1. d4 {[%clk 0:03:00]}  Nf6 {[%clk 0:02:59]} 2. Nc3 {[%clk 0:03:00]}  d5 {[%clk 0:02:59]} 3. Bf4 {[%clk 0:03:00]}  a6 {[%clk 0:02:54]} 4. e3 {[%clk 0:03:00]}  Bf5 {[%clk 0:02:54]} 5. Bd3 {[%clk 0:02:58]}  Bxd3 {[%clk 0:02:48]} 6. cxd3 {[%clk 0:02:59]}  e6 {[%clk 0:02:47]} 7. Qb3 {[%clk 0:02:59]}  b6 {[%clk 0:02:40]} 8. Nf3 {[%clk 0:02:59]}  Nbd7 {[%clk 0:02:30]} 9. e4 {[%clk 0:02:51]}  c6 {[%clk 0:02:10]} 10. O-O {[%clk 0:02:50]}  b5 {[%clk 0:02:10]} 11. Rfe1 {[%clk 0:02:46]}  Be7 {[%clk 0:02:09]} 12. h3 {[%clk 0:02:41]}  O-O {[%clk 0:02:08]} 13. Rac1 {[%clk 0:02:35]}  Qb6 {[%clk 0:01:52]} 14. Nb1 {[%clk 0:02:23]}  c5 {[%clk 0:01:42]} 15. e5 {[%clk 0:01:54]}  Ne8 {[%clk 0:01:14]} 16. Be3 {[%clk 0:01:52]}  c4 {[%clk 0:01:11]} 17. dxc4 {[%clk 0:01:52]}  bxc4 {[%clk 0:01:12]} 18. Qc2 {[%clk 0:01:52]}  Rb8 {[%clk 0:01:06]} 19. Bg5 {[%clk 0:01:52]}  f6 {[%clk 0:00:57]} 20. exf6 {[%clk 0:01:52]}  Nexf6 {[%clk 0:00:56]} 21. Nc3 {[%clk 0:01:50]}  h6 {[%clk 0:00:48]} 22. Bf4 {[%clk 0:01:49]}  Rb7 {[%clk 0:00:30]} 23. Qa4 {[%clk 0:01:42]}  Ne4 {[%clk 0:00:19]} 24. Nxe4 {[%clk 0:01:42]}  dxe4 {[%clk 0:00:19]} 25. Rxe4 {[%clk 0:01:42]}  Nf6 {[%clk 0:00:20]} 26. Ree1 {[%clk 0:01:40]}  Nd5 {[%clk 0:00:19]} 27. Bg3 {[%clk 0:01:38]}  Qxb2 {[%clk 0:00:15]} 28. Qxa6 {[%clk 0:01:38]}  Rb6 {[%clk 0:00:14]} 29. Qxc4 {[%clk 0:01:38]}  Rxf3 {[%clk 0:00:12]} 30. gxf3 {[%clk 0:01:36]}  Nf6 {[%clk 0:00:12]} 31. Rxe6 {[%clk 0:01:35]}  Rxe6 {[%clk 0:00:12]} 32. Qxe6+ {[%clk 0:01:36]}  Kh7 {[%clk 0:00:12]} 33. Re1 {[%clk 0:01:30]}  Bf8 {[%clk 0:00:11]} 34. d5 {[%clk 0:01:30]}  Qxa2 {[%clk 0:00:09]} 35. d6 {[%clk 0:01:30]}  Qxe6 {[%clk 0:00:09]} 36. Rxe6 {[%clk 0:01:31]}  Nd7 {[%clk 0:00:09]} 37. Kf1 {[%clk 0:01:30]}  Kg8 {[%clk 0:00:09]} 38. Re8 {[%clk 0:01:29]}  Kf7 {[%clk 0:00:09]} 39. Rd8 {[%clk 0:01:29]}  Nf6 {[%clk 0:00:07]} 40. d7 {[%clk 0:01:27]}  Be7 {[%clk 0:00:07]} 41. Ra8 {[%clk 0:01:22]}  Nxd7 {[%clk 0:00:07]} 42. Ra7 {[%clk 0:01:22]}  Nf8 {[%clk 0:00:04]} 43. Bd6 {[%clk 0:01:22]}  Ng6 {[%clk 0:00:04]} 44. Bxe7 {[%clk 0:01:23]}  Nxe7 {[%clk 0:00:04]} 45. Kg2 {[%clk 0:01:24]}  Kf6 {[%clk 0:00:05]} 46. Kg3 {[%clk 0:01:24]}  Nf5+ {[%clk 0:00:05]} 47. Kf4 {[%clk 0:01:25]}  g5+ {[%clk 0:00:05]} 48. Kg4 {[%clk 0:01:23]}  Nd4 {[%clk 0:00:04]} 49. Ra6+ {[%clk 0:01:23]}  Ne6 {[%clk 0:00:04]} 50. Rxe6+ {[%clk 0:01:19]}  Kxe6 {[%clk 0:00:04]} 51. Kh5 {[%clk 0:01:19]}  Kf5 {[%clk 0:00:04]} 52. Kxh6 {[%clk 0:01:20]}  Kf6 {[%clk 0:00:04]} 53. Kh5 {[%clk 0:01:20]}  Kf5 {[%clk 0:00:05]} 54. Kh6 {[%clk 0:01:17]}  Kf6 {[%clk 0:00:05]} 55. f4 {[%clk 0:01:14]}  gxf4 {[%clk 0:00:06]} 56. f3 {[%clk 0:01:15]}  Kf5 {[%clk 0:00:04]} 57. Kh5 {[%clk 0:01:15]}  Kf6 {[%clk 0:00:03]} 58. Kg4 {[%clk 0:01:16]}  Kg6 {[%clk 0:00:03]} 59. Kxf4 {[%clk 0:01:16]}  Kh5 {[%clk 0:00:04]} 60. Kg3 {[%clk 0:01:16]}  Kg5 {[%clk 0:00:04]} 61. f4+ {[%clk 0:01:16]}  Kh5 {[%clk 0:00:04]} 62. Kf3 {[%clk 0:01:17]}  Kg6 {[%clk 0:00:03]} 63. Kg4 {[%clk 0:01:17]}  Kf6 {[%clk 0:00:04]} 64. h4 {[%clk 0:01:18]}  Kg6 {[%clk 0:00:05]} 65. h5+ {[%clk 0:01:18]}  Kh6 {[%clk 0:00:06]} 66. f5 {[%clk 0:01:19]}  Kh7 {[%clk 0:00:06]} 67. Kg5 {[%clk 0:01:20]}  Kg7 {[%clk 0:00:07]} 68. h6+ {[%clk 0:01:20]}  Kh7 {[%clk 0:00:07]} 69. f6 {[%clk 0:01:21]}  Kh8 {[%clk 0:00:08]} 70. Kg6 {[%clk 0:01:21]}  Kg8 {[%clk 0:00:09]} 71. f7+ {[%clk 0:01:22]}  Kf8 {[%clk 0:00:08]} 72. h7 {[%clk 0:01:22]}  Ke7 {[%clk 0:00:08]} 73. h8=Q {[%clk 0:01:23]}  Ke6 {[%clk 0:00:08]} 74. Qe8+ {[%clk 0:01:23]}  Kd6 {[%clk 0:00:09]} 75. f8=Q+ {[%clk 0:01:24]}  Kc7 {[%clk 0:00:09]} 76. Qc5+ {[%clk 0:01:23]}  Kb7 {[%clk 0:00:10]} 77. Qec8# {[%clk 0:01:23]} 1-0


[Site "https://www.chess.com"]

[Event "Titled Tuesday Blitz June 21 Late 2022"]
[White "Grischuk, Alexander"]
[Black "Bilych, Olexiy"]
[WhiteFideId "4126025"]
[BlackFideId "14156504"]
[WhiteElo "2762"]
[BlackElo "2189"]
[Result "1/2-1/2"]
[Round "02"]
[TimeControl "180+1"]
[Date "2022.06.21"]
[WhiteClock "0:00:07"]
[BlackClock "0:00:12"]

1. d4 {[%clk 0:03:00]}  Nf6 {[%clk 0:02:59]} 2. Nf3 {[%clk 0:03:01]}  d5 {[%clk 0:02:59]} 3. Bf4 {[%clk 0:03:02]}  c5 {[%clk 0:02:59]} 4. e3 {[%clk 0:03:02]}  Nc6 {[%clk 0:02:55]} 5. Nbd2 {[%clk 0:03:02]}  cxd4 {[%clk 0:02:55]} 6. exd4 {[%clk 0:03:03]}  Bf5 {[%clk 0:02:55]} 7. Bb5 {[%clk 0:03:02]}  Rc8 {[%clk 0:02:52]} 8. Ne5 {[%clk 0:02:55]}  Qb6 {[%clk 0:02:43]} 9. Bxc6+ {[%clk 0:02:47]}  bxc6 {[%clk 0:02:43]} 10. Nb3 {[%clk 0:02:47]}  e6 {[%clk 0:02:37]} 11. g4 {[%clk 0:02:41]}  Bg6 {[%clk 0:02:35]} 12. h4 {[%clk 0:02:41]}  h5 {[%clk 0:01:48]} 13. Nxg6 {[%clk 0:02:40]}  fxg6 {[%clk 0:01:49]} 14. Qd3 {[%clk 0:02:40]}  Kf7 {[%clk 0:01:47]} 15. gxh5 {[%clk 0:02:35]}  Rxh5 {[%clk 0:01:44]} 16. Rg1 {[%clk 0:02:29]}  Rf5 {[%clk 0:01:43]} 17. Be3 {[%clk 0:02:30]}  a5 {[%clk 0:01:35]} 18. O-O-O {[%clk 0:02:06]}  a4 {[%clk 0:01:34]} 19. Nc5 {[%clk 0:02:07]}  Bxc5 {[%clk 0:01:24]} 20. dxc5 {[%clk 0:02:08]}  Qb5 {[%clk 0:01:24]} 21. Qa3 {[%clk 0:02:03]}  e5 {[%clk 0:01:16]} 22. Rg5 {[%clk 0:01:44]}  Rb8 {[%clk 0:01:12]} 23. Rdg1 {[%clk 0:01:36]}  Rxg5 {[%clk 0:01:08]} 24. hxg5 {[%clk 0:01:37]}  Nd7 {[%clk 0:01:02]} 25. f4 {[%clk 0:01:14]}  Qb4 {[%clk 0:00:55]} 26. Qxb4 {[%clk 0:01:11]}  Rxb4 {[%clk 0:00:55]} 27. fxe5 {[%clk 0:01:11]}  Nxe5 {[%clk 0:00:56]} 28. b3 {[%clk 0:00:55]}  axb3 {[%clk 0:00:53]} 29. axb3 {[%clk 0:00:49]}  Ke6 {[%clk 0:00:48]} 30. Rf1 {[%clk 0:00:41]}  d4 {[%clk 0:00:42]} 31. Bf4 {[%clk 0:00:33]}  Kd5 {[%clk 0:00:25]} 32. Bxe5 {[%clk 0:00:32]}  Kxe5 {[%clk 0:00:25]} 33. Rf7 {[%clk 0:00:31]}  Rb5 {[%clk 0:00:17]} 34. Rxg7 {[%clk 0:00:30]}  Kf5 {[%clk 0:00:17]} 35. Rd7 {[%clk 0:00:30]}  Rxc5 {[%clk 0:00:17]} 36. Rxd4 {[%clk 0:00:30]}  Kxg5 {[%clk 0:00:17]} 37. b4 {[%clk 0:00:29]}  Rb5 {[%clk 0:00:15]} 38. Kd2 {[%clk 0:00:25]}  Kf5 {[%clk 0:00:15]} 39. Ke3 {[%clk 0:00:23]}  g5 {[%clk 0:00:15]} 40. c3 {[%clk 0:00:23]}  g4 {[%clk 0:00:12]} 41. Kf2 {[%clk 0:00:19]}  Re5 {[%clk 0:00:12]} 42. Rc4 {[%clk 0:00:13]}  Re6 {[%clk 0:00:11]} 43. Kg3 {[%clk 0:00:12]}  Re3+ {[%clk 0:00:11]} 44. Kf2 {[%clk 0:00:13]}  Re6 {[%clk 0:00:12]} 45. Kg3 {[%clk 0:00:07]}  Re3+ {[%clk 0:00:12]} 46. Kf2 {[%clk 0:00:07]}  Re6 {[%clk 0:00:12]} 1/2-1/2


[Site "https://www.chess.com"]

[Event "Titled Tuesday Blitz June 21 Late 2022"]
[White "Guz, Ari"]
[Black "Lashkin, Jegor"]
[WhiteFideId "2825759"]
[BlackFideId "13907808"]
[WhiteElo "1913"]
[BlackElo "2368"]
[Result "1/2-1/2"]
[Round "02"]
[TimeControl "180+1"]
[Date "2022.06.21"]
[WhiteClock "0:00:11"]
[BlackClock "0:00:04"]

1. e4 {[%clk 0:03:00]}  c5 {[%clk 0:02:57]} 2. Nf3 {[%clk 0:03:01]}  d6 {[%clk 0:02:58]} 3. c3 {[%clk 0:03:01]}  Nf6 {[%clk 0:02:56]} 4. h3 {[%clk 0:03:01]}  g6 {[%clk 0:02:56]} 5. Bd3 {[%clk 0:03:01]}  Bg7 {[%clk 0:02:57]} 6. Bc2 {[%clk 0:03:01]}  e5 {[%clk 0:02:57]} 7. d4 {[%clk 0:03:01]}  cxd4 {[%clk 0:02:58]} 8. cxd4 {[%clk 0:03:02]}  exd4 {[%clk 0:02:59]} 9. Nxd4 {[%clk 0:03:02]}  O-O {[%clk 0:02:59]} 10. O-O {[%clk 0:03:02]}  Nc6 {[%clk 0:03:00]} 11. Be3 {[%clk 0:03:02]}  d5 {[%clk 0:03:00]} 12. Nc3 {[%clk 0:02:54]}  Re8 {[%clk 0:02:50]} 13. exd5 {[%clk 0:02:45]}  Nxd5 {[%clk 0:02:50]} 14. Nxd5 {[%clk 0:02:46]}  Qxd5 {[%clk 0:02:36]} 15. Bb3 {[%clk 0:02:44]}  Qd7 {[%clk 0:02:23]} 16. Nxc6 {[%clk 0:02:31]}  Qxc6 {[%clk 0:02:21]} 17. Rc1 {[%clk 0:02:31]}  Qe4 {[%clk 0:01:41]} 18. Rc7 {[%clk 0:02:19]}  Be6 {[%clk 0:01:41]} 19. Bxe6 {[%clk 0:02:15]}  Qxe6 {[%clk 0:01:30]} 20. Rxb7 {[%clk 0:02:15]}  Qxa2 {[%clk 0:01:30]} 21. b4 {[%clk 0:01:55]}  a6 {[%clk 0:01:26]} 22. Qf3 {[%clk 0:01:48]}  Rab8 {[%clk 0:01:22]} 23. Rc1 {[%clk 0:01:42]}  Be5 {[%clk 0:01:00]} 24. Rxb8 {[%clk 0:01:34]}  Rxb8 {[%clk 0:00:59]} 25. Qc6 {[%clk 0:01:20]}  Kg7 {[%clk 0:00:38]} 26. g3 {[%clk 0:01:01]}  h5 {[%clk 0:00:35]} 27. Qc5 {[%clk 0:00:58]}  Qe6 {[%clk 0:00:34]} 28. Bd4 {[%clk 0:00:55]}  Bxd4 {[%clk 0:00:29]} 29. Qxd4+ {[%clk 0:00:55]}  Kh7 {[%clk 0:00:29]} 30. Qc4 {[%clk 0:00:47]}  Qf6 {[%clk 0:00:21]} 31. Rd1 {[%clk 0:00:42]}  Rb6 {[%clk 0:00:16]} 32. Rd7 {[%clk 0:00:40]}  Kg8 {[%clk 0:00:14]} 33. Qc8+ {[%clk 0:00:39]}  Kh7 {[%clk 0:00:12]} 34. Qc4 {[%clk 0:00:39]}  Kg7 {[%clk 0:00:12]} 35. Qd4 {[%clk 0:00:39]}  Qxd4 {[%clk 0:00:13]} 36. Rxd4 {[%clk 0:00:39]}  Kf6 {[%clk 0:00:13]} 37. Rd5 {[%clk 0:00:36]}  Ke6 {[%clk 0:00:13]} 38. Ra5 {[%clk 0:00:36]}  Kd7 {[%clk 0:00:12]} 39. Kf1 {[%clk 0:00:34]}  Kc7 {[%clk 0:00:12]} 40. Re5 {[%clk 0:00:33]}  Kd6 {[%clk 0:00:09]} 41. Ra5 {[%clk 0:00:33]}  Kc6 {[%clk 0:00:09]} 42. Rc5+ {[%clk 0:00:31]}  Kb7 {[%clk 0:00:09]} 43. Re5 {[%clk 0:00:32]}  Rf6 {[%clk 0:00:09]} 44. Ke2 {[%clk 0:00:30]}  Kb6 {[%clk 0:00:09]} 45. f4 {[%clk 0:00:26]}  h4 {[%clk 0:00:08]} 46. Kf3 {[%clk 0:00:23]}  hxg3 {[%clk 0:00:08]} 47. Kxg3 {[%clk 0:00:23]}  Kc6 {[%clk 0:00:07]} 48. Kg4 {[%clk 0:00:21]}  Kd7 {[%clk 0:00:07]} 49. Ra5 {[%clk 0:00:20]}  Rb6 {[%clk 0:00:07]} 50. Ra4 {[%clk 0:00:18]}  Ke7 {[%clk 0:00:07]} 51. h4 {[%clk 0:00:18]}  Kf6 {[%clk 0:00:07]} 52. Ra5 {[%clk 0:00:18]}  Kg7 {[%clk 0:00:06]} 53. Ra3 {[%clk 0:00:18]}  Kh6 {[%clk 0:00:06]} 54. Ra5 {[%clk 0:00:16]}  f5+ {[%clk 0:00:06]} 55. Kg3 {[%clk 0:00:17]}  Kh5 {[%clk 0:00:06]} 56. Ra4 {[%clk 0:00:17]}  Rd6 {[%clk 0:00:05]} 57. Ra3 {[%clk 0:00:16]}  Rc6 {[%clk 0:00:04]} 58. Kh3 {[%clk 0:00:15]}  Rb6 {[%clk 0:00:04]} 59. Ra4 {[%clk 0:00:14]}  Re6 {[%clk 0:00:04]} 60. Ra3 {[%clk 0:00:14]}  Rd6 {[%clk 0:00:05]} 61. Rg3 {[%clk 0:00:13]}  Rb6 {[%clk 0:00:05]} 62. Ra3 {[%clk 0:00:11]}  a5 {[%clk 0:00:05]} 63. bxa5 {[%clk 0:00:11]}  Ra6 {[%clk 0:00:06]} 64. Kg3 {[%clk 0:00:11]}  Kh6 {[%clk 0:00:06]} 65. Kf3 {[%clk 0:00:10]}  Kh5 {[%clk 0:00:07]} 66. Ke3 {[%clk 0:00:10]}  Kxh4 {[%clk 0:00:07]} 67. Kf3 {[%clk 0:00:10]}  Kh5 {[%clk 0:00:05]} 68. Ra1 {[%clk 0:00:10]}  Kh6 {[%clk 0:00:04]} 69. Kg3 {[%clk 0:00:10]}  g5 {[%clk 0:00:04]} 70. fxg5+ {[%clk 0:00:10]}  Kxg5 {[%clk 0:00:05]} 71. Kf3 {[%clk 0:00:11]}  f4 {[%clk 0:00:04]} 1/2-1/2


[Site "https://www.chess.com"]